bitfinex/quotes_SOLUSD_20250802
["timestamp","ask_amount","ask_price","bid_price","bid_amount"]
[1754139575797,22.12910725,164.86,164.85,0.06]
[1754139576093,68.73321788,164.86,164.85,0.06]
[1754139576269,69.22321788,164.86,164.85,0.06]
[1754139576886,72.39160608,164.86,164.85,0.06]
[1754139577695,78.45735883,164.86,164.85,0.06]
[1754139578401,80.89126283,164.86,164.85,0.06]
[1754139578705,78.45735883,164.86,164.85,0.06]
[1754139580098,77.96735883,164.86,164.85,0.06]
[1754139580601,71.90160608,164.86,164.85,0.06]
[1754139582387,71.90160608,164.86,164.85,0.75]
[1754139583726,71.90160608,164.86,164.85,0.06]
[1754139584196,72.39160608,164.86,164.85,0.06]
[1754139584577,78.45735883,164.86,164.85,0.06]
[1754139585598,16.78468397,164.84,164.83,0.06]
[1754139585792,68.73321788,164.84,164.83,0.06]
[1754139586506,68.73321788,164.84,164.83,0.75]
[1754139587910,68.73321788,164.84,164.83,0.06]
[1754139588280,68.73321788,164.84,164.83,0.75]
[1754139588595,63.3887946,164.84,164.83,0.75]
[1754139588798,68.73321788,164.84,164.83,0.75]
[1754139591187,51.94853391,164.84,164.83,0.75]
[1754139591502,47.86442328,164.84,164.83,0.75]
[1754139592483,68.73068856,164.84,164.83,0.06]
[1754139593908,69.22068856,164.84,164.83,0.06]
[1754139594393,75.28717727,164.84,164.83,0.06]
[1754139594594,75.28717727,164.84,164.8,0.06]
[1754139594908,31.34442328,164.81,164.8,0.06]
[1754139595081,73.86442328,164.81,164.8,0.06]
[1754139595482,77.94548149,164.81,164.8,0.06]
[1754139597201,81.1145103,164.81,164.8,0.06]
[1754139598722,81.6045103,164.81,164.8,0.06]
[1754139598912,103.73361755,164.81,164.8,0.06]
[1754139599485,16.78468397,164.8,164.78,0.06]
[1754139599687,68.73016546,164.79,164.78,0.06]
[1754139600319,73.59875324,164.79,164.78,0.06]
[1754139600719,73.59875324,164.79,164.78,0.75]
[1754139600720,51.94548149,164.79,164.78,0.75]
[1754139601025,47.86442328,164.79,164.78,0.75]
[1754139605117,42.52,164.79,164.78,0.75]
[1754139605321,47.86442328,164.79,164.78,0.75]
[1754139607623,3.19902881,164.81,164.78,0.75]
[1754139607826,0.03,164.81,164.78,6.09442328]
[1754139608127,0.03,164.81,164.79,6.00442328]
[1754139608300,26.0,164.8,164.79,0.66]
[1754139608505,26.0,164.79,164.78,0.06]
[1754139609118,26.0,164.79,164.78,0.72]
[1754139609309,26.0,164.79,164.78,6.06442328]
[1754139611927,26.0,164.79,164.78,12.18884628]
[1754139612124,0.03,164.81,164.78,12.18884628]
[1754139612327,0.03,164.81,164.8,5.34442328]
[1754139612726,0.03,164.81,164.8,6.00442328]
[1754139613545,0.03,164.81,164.78,11.52884628]
[1754139613546,26.03,164.81,164.78,11.52884628]
[1754139613834,26.0,164.8,164.79,0.66]
[1754139615343,26.0,164.8,164.79,6.00442328]
[1754139616639,26.0,164.8,164.79,0.66]
[1754139616856,193.96442328,164.8,164.78,0.06]
[1754139617010,193.96442328,164.8,164.78,0.72]
[1754139618402,188.62,164.8,164.79,0.66]
[1754139619409,188.62,164.8,164.78,0.06]
[1754139619638,188.62,164.8,164.78,0.72]
[1754139622734,146.1,164.8,164.79,6.00442328]
[1754139624035,146.1,164.8,164.79,0.66]
[1754139624525,146.1,164.8,164.79,6.00442328]
[1754139625116,0.03,164.81,164.79,6.00442328]
[1754139625416,26.03,164.81,164.8,6.00442328]
[1754139627419,0.03,164.81,164.8,6.00442328]
[1754139631238,0.03,164.81,164.79,0.06]
[1754139631447,0.03,164.81,164.79,6.12442328]
[1754139632855,26.0,164.8,164.79,0.06]
[1754139633165,68.99,164.8,164.79,0.06]
[1754139633670,74.33442328,164.8,164.79,0.06]
[1754139636257,68.5,164.8,164.79,0.06]
[1754139637047,74.33442328,164.8,164.79,0.06]
[1754139637242,78.4252478,164.8,164.79,0.06]
[1754139638470,72.59082452,164.8,164.79,0.06]
[1754139638671,77.9352478,164.8,164.79,0.06]
[1754139639440,95.20993177,164.8,164.79,0.06]
[1754139643374,106.62231621,164.8,164.79,0.06]
[1754139643570,100.55435505,164.8,164.79,0.06]
[1754139644570,94.71993177,164.8,164.79,0.06]
[1754139644879,94.71993177,164.8,164.79,0.78]
[1754139645047,89.37550849,164.8,164.79,0.78]
[1754139645251,94.71993177,164.8,164.79,0.78]
[1754139645446,72.59082452,164.8,164.79,0.78]
[1754139645946,68.5,164.8,164.79,0.78]
[1754139647275,42.5,164.8,164.79,0.78]
[1754139647576,0.03,164.81,164.79,0.78]
[1754139647955,0.03,164.81,164.8,5.34442328]
[1754139648474,0.03,164.81,164.8,6.06442328]
[1754139649450,0.03,164.81,164.8,11.40884656]
[1754139654663,0.03,164.81,164.8,29.65424656]
[1754139656385,0.03,164.81,164.8,11.40884656]
[1754139656887,0.03,164.81,164.8,0.72]
[1754139657087,0.03,164.81,164.79,0.06]
[1754139657294,0.03,164.81,164.8,5.34442328]
[1754139657660,0.03,164.81,164.8,6.06442328]
[1754139663584,0.03,164.81,164.8,11.40884656]
[1754139666572,0.03,164.81,164.8,5.34442328]
[1754139667168,0.03,164.81,164.79,0.06]
[1754139667578,0.49,164.8,164.79,0.06]
[1754139668475,5.83442328,164.8,164.79,0.06]
[1754139669788,22.61910725,164.8,164.79,0.06]
[1754139670491,183.30027775,164.8,164.79,0.06]
[1754139670695,187.38141027,164.8,164.79,0.06]
[1754139673086,218.44902583,164.8,164.79,0.06]
[1754139674698,214.38789331,164.8,164.79,0.06]
[1754139675308,197.11320934,164.8,164.79,0.06]
[1754139675516,214.38789331,164.8,164.79,0.06]
[1754139676996,213.89789331,164.8,164.79,0.06]
[1754139677205,193.94442328,164.8,164.79,0.06]
[1754139677909,47.84442328,164.8,164.79,0.06]
[1754139678517,48.33442328,164.8,164.79,0.06]
[1754139679188,47.84442328,164.8,164.79,0.06]
[1754139684278,65.11910725,164.8,164.79,0.06]
[1754139686002,71.18706841,164.8,164.79,0.06]
[1754139686203,76.53149169,164.8,164.79,0.06]
[1754139686386,80.60921892,164.8,164.79,0.06]
[1754139686711,90.60921892,164.8,164.79,0.06]
[1754139687293,90.60921892,164.8,164.77,0.06]
[1754139687294,26.78468397,164.78,164.77,0.06]
[1754139687492,16.78468397,164.77,164.76,0.06]
[1754139687684,21.3524112,164.77,164.76,0.06]
[1754139688100,26.69683448,164.77,164.76,0.06]
[1754139688701,32.76590045,164.77,164.76,0.06]
[1754139690086,42.76590045,164.77,164.76,0.06]
[1754139692316,16.78468397,164.73,164.7,0.2]
[1754139692504,90.62910725,164.73,164.7,0.2]
[1754139693118,90.62910725,164.73,164.7,0.86]
[1754139693620,102.5340702,164.73,164.7,0.2]
[1754139695801,105.54593556,164.73,164.7,0.2]
[1754139698126,16.78468397,164.67,164.66,0.06]
[1754139698297,64.64910725,164.67,164.66,0.06]
[1754139699633,69.43257881,164.67,164.66,0.06]
[1754139700194,69.92257881,164.67,164.66,0.06]
[1754139700390,69.43257881,164.67,164.66,0.06]
[1754139702035,215.53257881,164.67,164.66,0.06]
[1754139703420,173.01257881,164.67,164.66,0.72]
[1754139703604,215.53257881,164.67,164.66,0.72]
[1754139703802,3.17148443,164.68,164.66,0.72]
[1754139704004,5.34442328,164.7,164.66,0.72]
[1754139704208,42.52,164.69,164.66,0.72]
[1754139704403,26.0,164.67,164.66,0.72]
[1754139704624,42.52,164.69,164.66,6.06442328]
[1754139704832,42.52,164.69,164.67,0.66]
[1754139705134,42.52,164.69,164.67,6.00442328]
[1754139705334,42.52,164.69,164.67,5.34442328]
[1754139705629,42.52,164.69,164.68,0.66]
[1754139708723,26.0,164.69,164.68,0.66]
[1754139709494,68.52,164.69,164.68,0.66]
[1754139711711,188.62,164.7,164.68,6.00442328]
[1754139711928,146.1,164.7,164.68,6.00442328]
[1754139712136,146.1,164.7,164.69,0.66]
[1754139712514,172.1,164.7,164.69,0.66]
[1754139712920,172.1,164.7,164.69,6.00442328]
[1754139713545,42.52,164.73,164.69,6.00442328]
[1754139713737,42.52,164.73,164.72,5.34442328]
[1754139713912,68.52,164.73,164.66,0.06]
[1754139714112,68.52,164.73,164.72,6.00442328]
[1754139714424,26.0,164.73,164.72,6.00442328]
[1754139715217,188.62,164.74,164.72,6.00442328]
[1754139715536,26.0,164.73,164.72,6.00442328]
[1754139715739,26.0,164.73,164.72,5.34442328]
[1754139716541,26.0,164.73,164.72,6.00442328]
[1754139717112,42.52,164.76,164.72,6.00442328]
[1754139717113,26.0,164.76,164.72,6.00442328]
[1754139717314,26.0,164.75,164.74,5.34442328]
[1754139717713,26.0,164.75,164.74,6.00442328]
[1754139718340,73.86442328,164.75,164.72,0.66]
[1754139718545,5.34442328,164.74,164.7,0.66]
[1754139718716,42.5,164.73,164.71,0.66]
[1754139719040,42.5,164.73,164.72,0.66]
[1754139719537,42.5,164.74,164.72,0.66]
[1754139719737,68.5,164.75,164.73,5.34442328]
[1754139719941,26.0,164.74,164.73,5.34442328]
[1754139720656,26.0,164.75,164.73,6.00442328]
[1754139720819,26.0,164.75,164.74,6.06442328]
[1754139722123,42.5,164.78,164.66,16.84468397]
[1754139722124,26.0,164.73,164.66,16.84468397]
[1754139722342,26.0,164.73,164.72,6.06442328]
[1754139723552,26.0,164.73,164.71,5.34442328]
[1754139723723,26.0,164.71,164.7,6.06442328]
[1754139726046,26.0,164.71,164.7,0.72]
[1754139726359,26.0,164.71,164.7,6.06442328]
[1754139726557,26.0,164.71,164.7,5.34442328]
[1754139726753,26.0,164.71,164.69,5.34442328]
[1754139726925,26.0,164.71,164.68,6.06442328]
[1754139727633,26.0,164.7,164.69,0.72]
[1754139727838,26.0,164.7,164.69,6.06442328]
[1754139728732,26.0,164.7,164.69,0.72]
[1754139728932,26.0,164.7,164.68,5.34442328]
[1754139729241,26.0,164.7,164.68,6.06442328]
[1754139729624,26.0,164.69,164.68,6.06442328]
[1754139730056,26.0,164.69,164.68,5.34442328]
[1754139731829,26.0,164.69,164.68,6.06442328]
[1754139735062,26.0,164.69,164.66,0.06]
[1754139735235,26.0,164.69,164.67,5.34442328]
[1754139735435,26.0,164.69,164.68,5.34442328]
[1754139736458,26.0,164.69,164.68,6.06442328]
[1754139737759,26.0,164.73,164.68,6.06442328]
[1754139737961,26.0,164.73,164.66,0.06]
[1754139737962,68.5,164.72,164.71,5.34442328]
[1754139738268,26.0,164.72,164.71,6.06442328]
[1754139738954,26.0,164.73,164.71,6.06442328]
[1754139739160,26.0,164.72,164.71,6.06442328]
[1754139740031,146.13,164.76,164.71,6.06442328]
[1754139740230,42.53,164.76,164.75,5.34442328]
[1754139741260,0.03,164.76,164.75,6.06442328]
[1754139742359,0.03,164.76,164.75,5.34442328]
[1754139743558,0.03,164.76,164.75,6.06442328]
[1754139744157,0.03,164.76,164.75,0.72]
[1754139744333,0.03,164.76,164.75,6.06442328]
[1754139744833,0.03,164.76,164.75,5.34442328]
[1754139746550,0.03,164.76,164.75,6.06442328]
[1754139747067,0.03,164.76,164.74,5.34442328]
[1754139747446,0.03,164.76,164.74,6.06442328]
[1754139748261,26.03,164.76,164.75,5.34442328]
[1754139750771,26.03,164.76,164.75,6.06442328]
[1754139752156,26.03,164.76,164.74,0.68]
[1754139752352,26.03,164.76,164.74,6.02442328]
[1754139752954,26.49,164.75,164.71,5.34442328]
[1754139753264,26.0,164.74,164.71,6.02442328]
[1754139754070,26.0,164.74,164.72,5.34442328]
[1754139754296,42.5,164.75,164.72,5.34442328]
[1754139754297,26.0,164.73,164.72,5.34442328]
[1754139754572,26.0,164.73,164.72,6.02442328]
[1754139755753,26.0,164.74,164.72,6.02442328]
[1754139755965,0.03,164.76,164.73,6.02442328]
[1754139756279,0.03,164.76,164.75,5.34442328]
[1754139756781,0.03,164.76,164.75,6.02442328]
[1754139763385,0.03,164.76,164.75,5.34442328]
[1754139763586,0.03,164.76,164.74,5.34442328]
[1754139763966,0.03,164.76,164.74,6.02442328]
[1754139764376,0.03,164.76,164.75,5.34442328]
[1754139766079,0.03,164.76,164.75,6.02442328]
[1754139767062,0.03,164.76,164.72,5.34442328]
[1754139767284,0.03,164.76,164.75,5.34442328]
[1754139767975,0.03,164.76,164.74,5.34442328]
[1754139769782,0.03,164.76,164.69,5.344423]
[1754139769990,26.0,164.75,164.74,5.34442328]
[1754139770475,26.03,164.76,164.74,5.34442328]
[1754139770793,26.03,164.76,164.75,6.02442328]
[1754139772206,26.03,164.76,164.75,5.34442328]
[1754139772492,26.03,164.76,164.75,6.02442328]
[1754139773698,26.03,164.76,164.75,5.34442328]
[1754139773998,26.0,164.75,164.74,5.34442328]
[1754139775494,26.0,164.75,164.74,6.02442328]
[1754139776701,26.0,164.75,164.74,5.34442328]
[1754139777485,26.0,164.75,164.74,6.02442328]
[1754139780272,0.03,164.76,164.74,6.02442328]
[1754139780596,0.03,164.76,164.7,6.024423]
[1754139780597,0.49,164.75,164.7,6.024423]
[1754139780768,0.52,164.76,164.73,5.34442328]
[1754139780966,0.03,164.76,164.74,5.34442328]
[1754139781173,26.0,164.75,164.68,6.024423]
[1754139781670,26.0,164.75,164.7,0.06]
[1754139781899,0.03,164.76,164.71,0.7]
[1754139782595,0.03,164.76,164.75,5.34442328]
[1754139782792,0.03,164.76,164.75,6.04442328]
[1754139785287,0.03,164.76,164.72,11.38884728]
[1754139785505,0.03,164.76,164.75,5.34442328]
[1754139787191,0.03,164.76,164.73,0.7]
[1754139787401,0.03,164.76,164.75,5.34442328]
[1754139791116,26.03,164.76,164.74,5.34442328]
[1754139791298,26.0,164.75,164.73,5.34442328]
[1754139791822,26.0,164.75,164.74,5.34442328]
[1754139792597,26.49,164.75,164.73,5.34442328]
[1754139792812,26.0,164.75,164.74,5.34442328]
[1754139794004,26.0,164.75,164.74,6.04442328]
[1754139796411,26.49,164.75,164.7,6.104424]
[1754139796621,26.49,164.75,164.73,5.34442328]
[1754139796622,26.0,164.75,164.73,5.34442328]
[1754139796928,26.0,164.75,164.74,5.34442328]
[1754139797114,26.0,164.75,164.74,6.20453813]
[1754139797421,26.0,164.75,164.73,6.90453813]
[1754139797803,26.49,164.75,164.73,6.20453813]
[1754139798505,26.0,164.75,164.73,6.20453813]
[1754139798900,26.0,164.75,164.73,6.90453813]
[1754139803030,26.0,164.75,164.73,6.20453813]
[1754139803225,26.0,164.74,164.72,6.904538]
[1754139803527,26.0,164.74,164.73,6.90453813]
[1754139803703,0.03,164.75,164.73,6.90453813]
[1754139803903,26.03,164.75,164.74,6.90453813]
[1754139804833,0.03,164.75,164.74,6.20453813]
[1754139805042,0.03,164.75,164.74,6.90453813]
[1754139809333,0.03,164.76,164.75,6.20453813]
[1754139809510,0.03,164.76,164.75,6.90453813]
[1754139812209,0.03,164.76,164.75,6.20453813]
[1754139814742,0.03,164.76,164.75,6.88453813]
[1754139815636,0.03,164.76,164.75,14.46907613]
[1754139816416,0.03,164.76,164.75,13.78907613]
[1754139816752,0.03,164.76,164.75,6.20453813]
[1754139817945,0.03,164.76,164.75,6.88453813]
[1754139820121,0.03,164.76,164.75,6.20453813]
[1754139821355,0.03,164.76,164.74,13.789076]
[1754139821640,0.03,164.76,164.75,6.20453813]
[1754139822358,0.52,164.76,164.73,19.99361413]
[1754139822642,0.52,164.76,164.73,6.20453813]
[1754139823355,0.52,164.76,164.74,6.20453813]
[1754139824032,0.52,164.76,164.72,18.937615]
[1754139824033,0.49,164.75,164.72,6.20453813]
[1754139824216,26.49,164.74,164.7,24.52326413]
[1754139824421,26.0,164.71,164.7,18.318726]
[1754139824723,26.49,164.71,164.7,0.06]
[1754139825117,0.49,164.71,164.7,0.06]
[1754139825325,32.69453813,164.71,164.7,0.06]
[1754139825529,27.57550054,164.71,164.7,0.06]
[1754139827338,23.4792221,164.71,164.7,0.06]
[1754139828559,27.56934811,164.71,164.7,0.06]
[1754139829240,23.4792221,164.71,164.7,0.06]
[1754139831137,17.27468397,164.71,164.7,0.06]
[1754139831340,23.4792221,164.71,164.7,0.06]
[1754139832137,33.63574544,164.71,164.7,0.06]
[1754139832779,42.78468397,164.68,164.67,0.06]
[1754139832985,91.4692221,164.68,164.67,0.06]
[1754139833385,91.9592221,164.68,164.67,0.06]
[1754139833960,85.75468397,164.68,164.67,0.06]
[1754139834178,91.9592221,164.68,164.67,0.06]
[1754139834887,91.4692221,164.68,164.67,0.06]
[1754139835852,85.26468397,164.68,164.67,0.06]
[1754139836086,91.4692221,164.68,164.67,0.06]
[1754139836590,85.26468397,164.68,164.67,0.06]
[1754139836956,91.4692221,164.68,164.67,0.06]
[1754139837156,85.26468397,164.68,164.67,0.06]
[1754139837454,91.4692221,164.68,164.67,0.06]
[1754139838457,91.9592221,164.68,164.67,0.06]
[1754139842472,91.4692221,164.68,164.67,0.06]
[1754139844206,74.68453813,164.68,164.67,0.78]
[1754139844392,68.48,164.68,164.67,0.78]
[1754139844969,68.48,164.68,164.67,0.06]
[1754139844970,91.4692221,164.68,164.67,0.06]
[1754139845180,91.9592221,164.68,164.67,0.06]
[1754139845580,91.4692221,164.68,164.67,0.06]
[1754139846101,91.9592221,164.68,164.67,0.06]
[1754139846508,91.4692221,164.68,164.67,0.06]
[1754139847120,68.48,164.68,164.67,0.06]
[1754139847278,68.48,164.68,164.67,0.78]
[1754139848381,74.68453813,164.68,164.67,0.06]
[1754139849423,91.4692221,164.68,164.67,0.06]
[1754139849912,91.9592221,164.68,164.67,0.06]
[1754139850420,95.13036775,164.68,164.67,0.06]
[1754139852126,101.20275055,164.68,164.67,0.06]
[1754139853727,104.21352279,164.68,164.67,0.06]
[1754139855214,162.76468397,164.66,164.65,0.06]
[1754139855395,211.4692221,164.66,164.65,0.06]
[1754139855592,211.9592221,164.66,164.65,0.06]
[1754139855827,218.16376023,164.66,164.65,0.06]
[1754139856186,16.78468397,164.65,164.64,0.06]
[1754139856409,39.82609873,164.65,164.64,0.06]
[1754139856609,52.16642418,164.65,164.64,0.06]
[1754139857583,42.78468397,164.63,164.62,0.2]
[1754139857796,26.78468397,164.62,164.59,0.06]
[1754139858092,37.54807139,164.62,164.59,0.06]
[1754139858290,49.35573804,164.62,164.59,0.06]
[1754139858486,55.43033407,164.62,164.59,0.06]
[1754139860305,68.70594754,164.62,164.59,0.06]
[1754139860507,78.70594754,164.62,164.59,0.06]
[1754139861713,39.80250222,164.62,164.61,0.78]
[1754139862011,82.30250222,164.62,164.61,0.78]
[1754139863087,88.86709825,164.62,164.61,0.06]
[1754139863289,92.92977354,164.62,164.61,0.06]
[1754139864422,102.92977354,164.62,164.61,0.06]
[1754139864923,49.93977354,164.62,164.61,0.06]
[1754139865105,86.38517751,164.62,164.61,0.06]
[1754139865418,82.32250222,164.62,164.61,0.78]
[1754139865718,82.34250222,164.62,164.61,0.06]
[1754139866090,82.34250222,164.62,164.61,0.78]
[1754139867202,76.13796409,164.62,164.61,0.78]
[1754139867404,82.34250222,164.62,164.61,0.78]
[1754139868623,82.34250222,164.62,164.61,0.06]
[1754139870325,86.41500497,164.62,164.61,0.06]
[1754139870727,89.58750035,164.62,164.61,0.06]
[1754139871031,95.66209638,164.62,164.61,0.06]
[1754139872112,89.58750035,164.62,164.61,0.06]
[1754139872933,95.66209638,164.62,164.61,0.06]
[1754139873227,89.58750035,164.62,164.61,0.06]
[1754139874431,95.66209638,164.62,164.61,0.06]
[1754139874617,96.15209638,164.62,164.61,0.06]
[1754139874931,89.58750035,164.62,164.61,0.06]
[1754139875100,89.58750035,164.62,164.61,0.75]
[1754139875610,79.27045947,164.62,164.61,0.75]
[1754139876335,11.80766665,164.62,164.61,0.75]
[1754139876502,54.30766665,164.62,164.61,6.95453813]
[1754139878706,11.80766665,164.62,164.61,6.95453813]
[1754139885020,11.80766665,164.62,164.61,13.90907613]
[1754139885527,26.0,164.65,164.61,13.90907613]
[1754139885719,26.0,164.65,164.64,6.20453813]
[1754139885923,26.0,164.65,164.61,7.014538]
[1754139886137,26.0,164.63,164.62,0.69]
[1754139886714,42.5,164.64,164.62,0.69]
[1754139886932,26.0,164.62,164.61,7.014538]
[1754139887214,26.0,164.62,164.61,0.06]
[1754139887445,26.0,164.62,164.61,6.26453813]
[1754139887644,26.0,164.62,164.61,6.95453813]
[1754139890945,26.03,164.62,164.61,6.95453813]
[1754139892649,26.03,164.62,164.61,0.06]
[1754139892854,68.53,164.62,164.61,0.06]
[1754139893062,68.53,164.62,164.61,6.95453813]
[1754139893733,68.53,164.62,164.61,6.26453813]
[1754139894261,75.22453813,164.62,164.61,0.06]
[1754139894757,68.53,164.62,164.61,0.06]
[1754139896952,26.03,164.62,164.61,6.95453813]
[1754139897262,0.03,164.62,164.61,6.95453813]
[1754139900680,26.03,164.62,164.61,13.90907613]
[1754139901048,26.03,164.62,164.61,6.95453813]
[1754139901247,0.03,164.62,164.61,6.95453813]
[1754139901449,0.03,164.64,164.61,13.15907626]
[1754139901648,0.03,164.68,164.63,12.40907626]
[1754139901859,0.03,164.72,164.67,6.20453813]
[1754139902051,0.03,164.72,164.71,6.20453813]
[1754139902274,26.03,164.72,164.71,6.20453813]
[1754139902478,0.03,164.72,164.71,6.91453813]
[1754139902985,0.03,164.72,164.71,13.11907626]
[1754139904550,0.03,164.72,164.71,6.91453813]
[1754139906400,0.03,164.72,164.71,25.17215313]
[1754139906955,0.03,164.72,164.71,31.37669126]
[1754139909192,0.03,164.72,164.71,25.17215313]
[1754139909564,0.03,164.72,164.71,24.46215313]
[1754139910159,0.03,164.72,164.71,6.20453813]
[1754139911095,26.03,164.72,164.71,6.20453813]
[1754139911670,26.03,164.72,164.66,0.71]
[1754139911671,69.14,164.72,164.66,0.71]
[1754139911873,26.0,164.7,164.69,18.259837]
[1754139912074,26.0,164.69,164.67,6.20453813]
[1754139912318,26.0,164.69,164.64,43.25]
[1754139912471,26.0,164.69,164.67,6.20453813]
[1754139914207,26.0,164.68,164.65,18.259837]
[1754139914391,26.61,164.68,164.65,6.20453813]
[1754139914798,69.13,164.68,164.65,6.20453813]
[1754139915421,68.52,164.68,164.64,6.20453813]
[1754139915594,0.61,164.67,164.63,6.20453813]
[1754139915799,0.61,164.66,164.61,0.06]
[1754139915991,0.61,164.66,164.63,6.20453813]
[1754139916297,69.13,164.68,164.64,6.20453813]
[1754139916901,0.61,164.67,164.64,6.20453813]
[1754139917588,0.61,164.66,164.63,6.20453813]
[1754139917787,43.13,164.66,164.63,6.20453813]
[1754139918509,26.0,164.63,164.61,6.26453813]
[1754139919105,26.0,164.63,164.61,6.97453813]
[1754139919524,26.0,164.63,164.62,6.20453813]
[1754139921414,26.0,164.63,164.62,6.91453813]
[1754139922596,26.0,164.63,164.62,6.20453813]
[1754139929122,26.0,164.63,164.62,6.91453813]
[1754139929921,68.48,164.66,164.62,6.91453813]
[1754139930116,26.0,164.64,164.63,6.91453813]
[1754139930322,26.0,164.64,164.63,6.20453813]
[1754139930599,26.0,164.64,164.61,0.06]
[1754139930801,26.0,164.64,164.62,6.20453813]
[1754139931095,26.0,164.63,164.61,6.26453813]
[1754139931311,0.61,164.63,164.61,0.06]
[1754139932026,26.0,164.63,164.62,6.91453813]
[1754139932940,26.0,164.67,164.62,6.91453813]
[1754139933127,26.0,164.65,164.63,0.71]
[1754139933727,26.0,164.65,164.64,0.71]
[1754139933934,26.0,164.65,164.61,0.77]
[1754139934255,26.61,164.65,164.63,6.20453813]
[1754139934660,26.0,164.65,164.63,6.20453813]
[1754139935331,26.0,164.65,164.63,0.06]
[1754139935531,26.0,164.65,164.64,6.20453813]
[1754139937357,26.0,164.65,164.63,0.06]
[1754139937358,26.0,164.65,164.63,6.26453813]
[1754139937751,26.0,164.65,164.63,6.97453813]
[1754139939061,26.0,164.65,164.63,6.26453813]
[1754139940058,0.61,164.64,164.63,0.06]
[1754139941860,42.48,164.65,164.63,0.06]
[1754139942358,43.09,164.65,164.63,0.06]
[1754139943851,0.61,164.64,164.63,0.06]
[1754139945440,23.5992221,164.64,164.63,0.06]
[1754139945641,23.5992221,164.64,164.61,0.06]
[1754139945642,16.78468397,164.63,164.61,0.06]
[1754139945836,74.70453813,164.62,164.61,0.06]
[1754139946034,26.0,164.6,164.59,0.06]
[1754139946236,74.70453813,164.6,164.59,0.06]
[1754139946549,91.9792221,164.6,164.59,0.06]
[1754139946772,96.05299282,164.6,164.59,0.06]
[1754139947343,102.12832696,164.6,164.59,0.06]
[1754139947743,96.05299282,164.6,164.59,0.06]
[1754139947953,102.12832696,164.6,164.59,0.06]
[1754139948462,91.9792221,164.6,164.59,0.06]
[1754139948665,96.94607032,164.6,164.59,0.06]
[1754139950169,103.02140446,164.6,164.59,0.06]
[1754139950377,107.0918533,164.6,164.59,0.06]
[1754139952157,107.09071644,164.6,164.59,0.06]
[1754139953566,101.0153823,164.6,164.59,0.06]
[1754139954138,100.5253823,164.6,164.59,0.06]
[1754139954355,96.45607032,164.6,164.59,0.06]
[1754139954569,96.49607032,164.6,164.59,0.06]
[1754139954996,90.29153219,164.6,164.59,0.06]
[1754139955150,96.98607032,164.6,164.59,0.06]
[1754139956245,96.49607032,164.6,164.59,0.06]
[1754139956542,100.57002845,164.6,164.59,0.06]
[1754139956746,100.57000105,164.6,164.59,0.06]
[1754139956949,96.49607032,164.6,164.59,0.06]
[1754139957149,101.06000105,164.6,164.59,0.06]
[1754139957353,107.13533519,164.6,164.59,0.06]
[1754139961066,106.64533519,164.6,164.59,0.06]
[1754139961274,107.13533519,164.6,164.59,0.06]
[1754139961580,110.308346,164.6,164.59,0.06]
[1754139961793,109.818346,164.6,164.59,0.06]
[1754139962391,103.74301186,164.6,164.59,0.06]